bitfinex/quotes_SOLUSD_20250928
["timestamp","ask_amount","ask_price","bid_price","bid_amount"]
[1759075672577,6.69467858,205.16,205.12,41.26]
[1759075672880,19.22589473,205.19,205.12,41.26]
[1759075673082,6.69467858,205.18,205.13,14.5]
[1759075673285,0.66,205.17,205.12,41.26]
[1759075673483,6.69467858,205.17,205.12,41.26]
[1759075673782,19.22589473,205.19,205.17,14.5]
[1759075674175,19.22589473,205.19,205.14,7.35467858]
[1759075674364,19.22589473,205.19,205.15,15.16]
[1759075674570,19.22589473,205.19,205.17,6.69467858]
[1759075674765,19.22589473,205.19,205.17,14.5]
[1759075675685,19.22589473,205.19,205.18,12.22844795]
[1759075676472,19.22589473,205.19,205.18,5.53376937]
[1759075676767,19.22589473,205.19,205.18,29.31256713]
[1759075676977,19.22589473,205.19,205.18,51.64320375]
[1759075677180,19.22589473,205.19,205.18,51.48320375]
[1759075677394,19.22589473,205.19,205.18,44.78852517]
[1759075677895,26.58057331,205.19,205.15,55.86]
[1759075678068,6.69467858,205.17,205.15,55.86]
[1759075678275,6.69467858,205.18,205.15,55.86]
[1759075678495,0.66,205.17,205.11,19.375397]
[1759075678694,0.66,205.17,205.14,14.5]
[1759075679028,6.69467858,205.17,205.15,3.48787495]
[1759075679194,6.69467858,205.17,205.14,14.5]
[1759075679410,7.35467858,205.16,205.15,3.48828756]
[1759075679588,33.35467858,205.16,205.09,14.5]
[1759075679771,6.69467858,205.11,205.1,3.49039433]
[1759075679973,6.69467858,205.12,205.1,3.49039433]
[1759075680171,19.88589473,205.19,205.11,17.99039433]
[1759075680400,19.88589473,205.19,205.13,14.0]
[1759075680690,26.0,205.11,205.05,14.0]
[1759075680895,6.69467858,205.06,205.01,14.0]
[1759075681091,6.69467858,205.12,204.98,14.0]
[1759075681394,4.1126675,205.32,205.03,14.0]
[1759075681395,0.66,205.09,205.03,14.0]
[1759075681615,0.66,205.12,205.05,14.0]
[1759075681783,0.66,205.16,205.09,14.0]
[1759075681973,19.88589473,205.19,205.11,14.0]
[1759075682176,19.88589473,205.19,205.06,4.87662034]
[1759075682177,6.69467858,205.12,205.07,14.0]
[1759075682387,0.66,205.17,205.09,14.0]
[1759075682603,6.69467858,205.11,205.1,3.49457193]
[1759075682899,0.66,205.17,205.1,3.49457193]
[1759075683095,19.22589473,205.19,205.14,14.0]
[1759075683299,6.69467858,205.16,205.15,3.49430339]
[1759075683970,6.69467858,205.16,205.15,2.99430339]
[1759075684396,19.22589473,205.19,205.16,14.0]
[1759075684612,25.92057331,205.19,205.16,14.0]
[1759075684777,6.69467858,205.17,205.16,14.0]
[1759075685104,6.69467858,205.18,205.16,14.0]
[1759075685474,6.69467858,205.17,205.16,14.0]
[1759075686485,0.66,205.17,205.13,14.0]
[1759075686686,6.69467858,205.14,205.11,14.0]
[1759075686885,6.69467858,205.14,205.04,26.0]
[1759075686886,0.66,205.13,205.06,14.0]
[1759075687082,6.69467858,205.07,205.04,14.0]
[1759075687282,6.69467858,205.05,205.0,14.0]
[1759075687576,6.69467858,205.01,205.0,14.0]
[1759075687780,26.0,205.1,205.0,14.0]
[1759075687985,6.69467858,205.08,205.06,14.0]
[1759075688191,6.69467858,205.08,205.04,14.0]
[1759075688389,6.69467858,205.08,205.06,14.0]
[1759075688701,0.66,205.11,205.04,6.69467858]
[1759075688913,13.59559401,205.14,204.96,14.0]
[1759075689083,6.69467858,204.97,204.89,4.88066767]
[1759075689402,6.69467858,204.96,204.94,14.0]
[1759075689815,0.66,205.03,204.97,14.0]
[1759075690105,26.66,205.07,205.0,14.0]
[1759075690306,4.53262433,205.03,205.0,14.0]
[1759075690795,4.53262433,205.01,204.98,14.0]
[1759075690999,26.0,205.07,204.96,14.0]
[1759075691000,4.53262433,204.99,204.96,14.0]
[1759075691305,4.53262433,204.97,204.95,14.0]
[1759075691509,26.0,205.05,204.95,14.0]
[1759075691510,0.66,205.04,204.95,14.65]
[1759075691708,0.66,205.04,204.98,14.0]
[1759075691904,4.53262433,205.01,204.98,14.0]
[1759075692084,4.53262433,205.01,204.96,14.0]
[1759075692286,0.66,205.0,204.96,14.0]
[1759075692608,4.53262433,204.98,204.96,14.0]
[1759075692920,26.0,205.07,204.91,0.65]
[1759075692921,5.19262433,204.97,204.91,14.0]
[1759075693207,26.0,205.06,204.94,14.0]
[1759075693208,4.53262433,204.96,204.94,14.0]
[1759075693407,26.0,205.0,204.93,14.0]
[1759075693584,0.66,204.99,204.93,14.0]
[1759075693786,4.53262433,204.95,204.9,14.0]
[1759075693998,4.53262433,204.95,204.9,14.65]
[1759075694295,4.53262433,204.95,204.92,14.0]
[1759075694497,14.0,205.03,204.96,14.0]
[1759075694788,4.53262433,205.0,204.96,14.0]
[1759075694976,4.53262433,205.0,204.98,14.0]
[1759075695180,5.19262433,204.99,204.94,14.0]
[1759075695407,4.53262433,204.96,204.92,14.0]
[1759075695706,4.53262433,204.95,204.94,14.0]
[1759075695883,0.66,204.98,204.91,14.0]
[1759075696080,4.53262433,204.92,204.91,14.0]
[1759075696390,5.19262433,204.92,204.87,44.46]
[1759075696582,0.66,204.91,204.87,30.46]
[1759075696788,0.66,204.9,204.87,30.46]
[1759075696991,4.53262433,204.88,204.87,30.46]
[1759075697190,14.68392844,204.97,204.85,14.0]
[1759075697491,0.66,204.96,204.9,14.0]
[1759075697692,4.53262433,204.91,204.83,14.65]
[1759075697900,4.53262433,204.88,204.83,14.0]
[1759075698103,5.19262433,204.88,204.83,14.0]
[1759075698295,4.53262433,204.87,204.83,14.0]
[1759075698494,0.66,204.88,204.86,14.0]
[1759075698822,4.53262433,204.88,204.84,14.0]
[1759075698994,0.66,204.94,204.87,4.53262433]
[1759075699192,4.53262433,204.93,204.88,14.0]
[1759075699403,4.53262433,204.9,204.88,14.0]
[1759075699604,4.53262433,204.9,204.84,4.53262433]
[1759075699605,4.53262433,204.9,204.85,14.0]
[1759075699811,4.53262433,204.88,204.85,14.0]
[1759075700022,26.0,204.93,204.82,5.18262433]
[1759075700023,4.53262433,204.87,204.86,14.0]
[1759075700206,4.53262433,204.87,204.83,14.0]
[1759075700515,4.53262433,204.87,204.81,5.08254477]
[1759075700516,4.53262433,204.85,204.81,14.2]
[1759075700689,4.53262433,204.84,204.81,14.2]
[1759075700895,0.71,204.83,204.81,14.2]
[1759075701196,4.53262433,204.82,204.81,0.2]
[1759075701718,5.24262433,204.82,204.81,0.2]
[1759075703702,0.71,204.82,204.81,0.2]
[1759075703906,4.53262433,204.84,204.81,14.2]
[1759075704103,0.71,204.87,204.81,14.2]
[1759075704300,4.53262433,204.85,204.81,14.2]
[1759075704614,4.53262433,204.87,204.81,18.73262433]
[1759075704927,4.53262433,204.85,204.81,14.2]
[1759075705218,0.71,204.88,204.81,14.2]
[1759075705219,4.53262433,204.84,204.81,14.2]
[1759075705393,0.71,204.87,204.81,14.2]
[1759075705593,26.0,204.89,204.81,14.2]
[1759075705594,4.53262433,204.86,204.81,19.08256701]
[1759075705809,4.53262433,204.86,204.81,19.79256701]
[1759075706015,4.53262433,204.86,204.81,19.08256701]
[1759075706217,4.53262433,204.86,204.81,19.79256701]
[1759075706398,4.53262433,204.86,204.81,19.08256701]
[1759075706606,4.53262433,204.86,204.81,19.79256701]
[1759075706912,4.53262433,204.86,204.82,0.71]
[1759075707108,4.53262433,204.86,204.81,19.08241526]
[1759075707416,4.53262433,204.88,204.83,14.0]
[1759075707630,0.71,204.95,204.84,0.71]
[1759075707928,4.53262433,204.97,204.91,14.0]
[1759075708094,4.53262433,204.94,204.91,14.0]
[1759075708502,4.53262433,204.96,204.91,14.0]
[1759075708702,14.0,205.01,204.93,18.53262433]
[1759075708703,0.71,205.01,204.93,18.53262433]
[1759075708916,4.53262433,204.98,204.93,14.0]
[1759075709124,4.53262433,204.94,204.89,14.0]
[1759075709300,0.71,204.94,204.89,14.0]
[1759075709496,18.47293362,205.03,204.89,14.0]
[1759075709497,0.71,204.97,204.89,14.71]
[1759075709816,4.53262433,204.93,204.89,14.0]
[1759075710023,4.53262433,204.95,204.9,5.24262433]
[1759075710216,4.53262433,204.98,204.94,14.0]
[1759075711136,4.53262433,204.96,204.92,14.0]
[1759075711310,4.53262433,204.96,204.95,14.0]
[1759075711501,4.53262433,204.99,204.95,14.0]
[1759075711701,4.53262433,204.98,204.95,14.0]
[1759075711898,4.53262433,204.98,204.85,64.00347908]
[1759075711899,4.53262433,204.96,204.93,14.0]
[1759075712238,30.53262433,204.94,204.87,14.0]
[1759075712400,4.53262433,204.88,204.87,14.0]
[1759075712830,4.53262433,204.9,204.87,14.0]
[1759075713023,0.71,204.93,204.87,14.0]
[1759075713324,4.53262433,204.9,204.87,14.0]
[1759075713516,0.71,204.93,204.87,14.0]
[1759075713701,4.53262433,204.93,204.89,14.0]
[1759075713899,4.53262433,204.94,204.89,14.71]
[1759075714717,4.53262433,204.96,204.92,14.0]
[1759075714915,4.53262433,204.95,204.92,14.0]
[1759075715118,26.0,204.99,204.88,14.0]
[1759075715300,4.53262433,204.91,204.88,14.0]
[1759075716007,26.71,204.99,204.91,14.0]
[1759075716515,4.53262433,204.95,204.91,14.0]
[1759075716910,4.53262433,204.96,204.92,0.71]
[1759075717116,4.53262433,204.96,204.91,14.0]
[1759075717318,0.71,204.98,204.91,14.0]
[1759075717505,0.71,205.02,204.95,14.0]
[1759075718141,4.53262433,204.98,204.95,14.0]
[1759075718314,4.53262433,204.99,204.95,14.71]
[1759075718512,4.53262433,204.98,204.95,14.0]
[1759075718717,4.53262433,205.0,204.95,14.0]
[1759075719017,133.51,205.04,204.95,14.0]
[1759075719018,4.53262433,204.97,204.95,14.0]
[1759075719614,4.53262433,204.99,204.95,14.71]
[1759075719812,0.71,205.02,204.95,14.0]
[1759075720032,4.53262433,204.99,204.95,14.0]
[1759075720347,4.53262433,205.01,204.98,14.0]
[1759075720540,4.53262433,204.99,204.98,14.0]
[1759075720846,13.59559401,205.06,204.96,14.0]
[1759075721032,4.53262433,204.99,204.96,14.0]
[1759075721344,13.59559401,205.07,205.0,14.0]
[1759075721345,0.71,205.07,205.0,14.0]
[1759075721643,4.53262433,205.01,205.0,14.0]
[1759075722016,4.53262433,205.01,204.96,14.0]
[1759075722216,4.53262433,204.99,204.97,3.53903876]
[1759075722441,13.59559401,205.05,204.96,14.0]
[1759075722645,4.53262433,204.97,204.96,14.0]
[1759075723216,5.24262433,204.97,204.92,14.0]
[1759075723446,0.71,204.97,204.93,3.54475737]
[1759075723642,4.53262433,204.95,204.92,14.0]
[1759075723844,4.53262433,204.95,204.93,3.54476138]
[1759075724146,4.53262433,204.95,204.94,3.5466382]
[1759075724523,4.53262433,204.95,204.92,14.0]
[1759075724725,4.53262433,204.95,204.93,3.54723704]
[1759075724944,4.53262433,204.95,204.92,14.0]
[1759075725124,4.53262433,204.95,204.93,3.54723591]
[1759075725321,4.53262433,204.94,204.92,14.0]
[1759075725513,4.53262433,204.94,204.87,0.71]
[1759075725514,4.53262433,204.93,204.9,14.0]
[1759075725718,4.53262433,204.92,204.9,14.0]
[1759075726332,0.71,204.97,204.9,14.0]
[1759075726532,4.53262433,204.93,204.9,14.0]
[1759075726735,4.53262433,204.94,204.9,14.0]
[1759075727140,4.53262433,204.93,204.9,14.0]
[1759075727820,4.53262433,204.94,204.9,14.71]
[1759075728021,4.53262433,204.95,204.9,14.71]
[1759075728237,13.59559401,205.02,204.91,4.26244081]
[1759075728238,26.71,204.99,204.91,4.26244081]
[1759075728546,4.53262433,204.95,204.91,0.71]
[1759075728721,4.53262433,204.95,204.92,3.55229553]
[1759075729051,4.53262433,204.95,204.9,14.0]
[1759075729246,4.53262433,204.95,204.91,3.55227399]
[1759075729447,4.53262433,204.95,204.92,3.55227399]
[1759075729635,0.71,204.94,204.93,3.55227399]
[1759075729828,4.53262433,204.94,204.91,3.55562655]
[1759075730029,0.71,205.0,204.93,14.0]
[1759075730239,4.53262433,204.97,204.93,14.0]
[1759075730538,4.53262433,204.96,204.93,14.0]
[1759075730844,4.53262433,204.94,204.89,14.0]
[1759075731033,4.53262433,204.93,204.92,14.0]
[1759075731236,4.53262433,204.93,204.91,14.0]
[1759075731445,4.53262433,204.93,204.89,14.0]
[1759075731646,4.53262433,204.96,204.92,14.0]
[1759075731854,26.0,205.0,204.93,0.71]
[1759075732163,4.53262433,204.99,204.94,14.0]
[1759075732539,4.53262433,204.99,204.94,14.71]
[1759075732735,5.23262433,204.99,204.94,14.0]
[1759075732938,6.0,205.11,204.95,8.09774682]
[1759075733145,14.7395277,205.12,204.98,14.0]
[1759075733146,4.53262433,205.01,204.98,14.0]
[1759075733353,4.53262433,204.99,204.95,14.0]
[1759075733657,4.53262433,204.98,204.95,14.0]
[1759075733953,4.53262433,204.99,204.95,14.0]
[1759075734825,5.23262433,204.99,204.95,14.0]
[1759075735247,4.53262433,204.98,204.95,14.0]
[1759075736828,13.59559401,205.06,204.92,14.0]
[1759075736829,4.53262433,204.96,204.92,14.0]
[1759075737029,4.53262433,204.93,204.92,14.0]
[1759075737249,0.7,204.95,204.92,14.0]
[1759075737250,4.53262433,204.94,204.92,14.0]
[1759075738161,0.7,204.97,204.92,14.0]
[1759075738359,4.53262433,204.95,204.9,14.0]
[1759075738553,4.53262433,204.94,204.92,14.0]
[1759075738749,4.53262433,204.94,204.9,0.71]
[1759075738750,4.53262433,204.93,204.9,14.0]
[1759075738947,4.53262433,204.92,204.9,14.0]
[1759075739449,4.53262433,204.93,204.9,14.0]
[1759075739750,4.53262433,204.91,204.88,14.0]
[1759075739955,4.53262433,204.9,204.88,14.0]
[1759075740154,4.53262433,204.91,204.9,14.0]
[1759075740355,4.53262433,204.91,204.88,14.0]
[1759075740567,4.53262433,204.89,204.88,14.0]
[1759075740866,4.53262433,204.89,204.84,14.0]
[1759075740867,5.23262433,204.89,204.84,14.0]
[1759075741158,4.53262433,204.86,204.81,14.2]
[1759075741344,0.7,204.88,204.84,14.0]
[1759075741553,4.53262433,204.87,204.84,14.0]
[1759075741855,4.53262433,204.88,204.86,14.0]
[1759075743336,4.53262433,204.88,204.84,14.0]
[1759075743750,4.53262433,204.88,204.86,14.0]
[1759075744179,5.23262433,204.87,204.86,14.0]
[1759075744350,4.53262433,204.87,204.86,14.0]
[1759075744550,4.53262433,204.87,204.84,14.0]
[1759075744749,4.53262433,204.85,204.84,14.0]
[1759075744944,4.53262433,204.85,204.81,0.2]
[1759075745139,4.53262433,204.84,204.81,0.2]
[1759075746160,4.53262433,204.83,204.81,0.2]
[1759075746355,4.53262433,204.83,204.82,14.0]
[1759075746575,4.53262433,204.83,204.81,0.2]
[1759075746858,4.88019737,204.91,204.81,0.2]
[1759075746859,5.23262433,204.82,204.81,0.2]
[1759075747036,0.7,204.82,204.81,0.2]
[1759075747238,5.23262433,204.82,204.81,0.2]
[1759075748657,9.76524866,204.82,204.81,0.2]
[1759075748861,23.36084267,204.82,204.81,0.2]
[1759075749162,26.0,204.79,204.74,14.0]
[1759075749550,26.0,204.86,204.78,14.0]
[1759075749762,4.53262433,204.82,204.78,14.0]
[1759075749948,4.53262433,204.81,204.78,14.0]
[1759075750261,6.71424296,204.81,204.78,14.0]
[1759075750648,26.7,204.84,204.78,14.0]
[1759075750851,6.71424296,204.81,204.78,14.0]
[1759075751167,6.71424296,204.8,204.78,14.0]
[1759075751546,26.7,204.84,204.78,14.0]
[1759075751768,6.71424296,204.8,204.78,14.0]
[1759075751946,6.71424296,204.79,204.78,14.0]
[1759075752149,6.71424296,204.79,204.74,0.69]
[1759075752150,7.37424296,204.79,204.76,14.0]
[1759075752364,6.71424296,204.77,204.74,14.0]
[1759075752562,6.71424296,204.75,204.74,14.0]
[1759075752865,6.71424296,204.75,204.66,14.0]
[1759075752866,7.37424296,204.75,204.66,14.0]
[1759075753163,6.71424296,204.69,204.68,14.0]
[1759075753365,6.71424296,204.7,204.68,14.0]
[1759075753958,6.71424296,204.69,204.68,14.0]
[1759075754155,6.71424296,204.69,204.65,14.0]
[1759075754356,26.0,204.75,204.68,14.0]
[1759075754357,66.42,204.75,204.68,14.0]
[1759075754556,6.71424296,204.71,204.7,14.0]
[1759075754762,6.71424296,204.71,204.68,14.0]
[1759075754963,6.71424296,204.69,204.66,14.0]
[1759075755148,6.71424296,204.68,204.66,14.0]
[1759075755362,6.71424296,204.67,204.66,14.0]
[1759075755671,0.66,204.7,204.62,0.69]
[1759075755672,0.66,204.7,204.64,14.0]
[1759075755850,6.71424296,204.66,204.64,14.0]
[1759075756050,6.71424296,204.65,204.64,14.0]
[1759075756668,7.37424296,204.65,204.64,14.0]
[1759075756884,7.37424296,204.65,204.6,0.2]
[1759075757057,0.66,204.64,204.61,14.0]
[1759075757374,13.59559401,204.68,204.61,14.0]
[1759075757375,6.71424296,204.62,204.61,14.0]
[1759075758050,0.66,204.63,204.61,14.0]
[1759075758276,0.66,204.65,204.61,14.0]
[1759075758471,0.66,204.64,204.6,0.2]
[1759075759076,0.66,204.69,204.63,6.71424296]
[1759075759272,26.66,204.69,204.64,6.71424296]
[1759075759677,0.66,204.68,204.64,6.71424296]
[1759075760047,0.66,204.67,204.63,14.0]
[1759075760358,6.71424296,204.65,204.6,14.2]
[1759075760665,0.65,204.64,204.6,0.2]
[1759075761557,7.36424296,204.63,204.6,0.2]
[1759075761962,0.65,204.62,204.6,0.2]
[1759075762162,6.71424296,204.63,204.6,0.2]
[1759075762358,7.36424296,204.63,204.6,0.2]
[1759075762669,0.65,204.62,204.6,0.2]
[1759075762971,6.71424296,204.64,204.6,0.2]
[1759075763161,0.65,204.63,204.6,0.2]
[1759075763360,0.65,204.62,204.6,0.2]
[1759075763978,40.28,204.65,204.6,6.91424296]
[1759075764171,40.93,204.65,204.6,6.91424296]
[1759075764468,6.71424296,204.65,204.6,0.2]
[1759075764672,53.85559401,204.66,204.6,0.2]
[1759075764673,7.36424296,204.64,204.6,0.2]
[1759075765065,0.65,204.64,204.6,0.2]
[1759075765480,0.65,204.63,204.6,0.2]
[1759075765685,6.71424296,204.65,204.6,0.2]
[1759075765977,0.65,204.63,204.6,0.2]
[1759075766174,26.0,204.65,204.6,0.2]
[1759075766479,0.65,204.64,204.6,6.91424296]
[1759075766668,26.0,204.66,204.6,0.2]
[1759075766870,66.93,204.66,204.6,6.91424296]
[1759075767383,73.64424296,204.66,204.6,0.2]
[1759075767877,6.71424296,204.64,204.6,0.2]
[1759075768263,0.65,204.63,204.6,0.2]
[1759075768586,0.65,204.62,204.6,0.2]
[1759075768965,7.36424296,204.64,204.6,0.2]
[1759075769175,0.65,204.63,204.6,0.2]
[1759075771457,6.71424296,204.63,204.6,0.2]
[1759075771675,40.22,204.65,204.6,0.2]
[1759075771676,7.36424296,204.62,204.6,0.2]
[1759075772178,0.65,204.61,204.6,0.2]
[1759075773385,7.36424296,204.61,204.6,0.2]
[1759075774290,47.48424296,204.61,204.6,0.2]
[1759075775471,54.36559401,204.61,204.6,0.2]
[1759075775684,61.07983697,204.61,204.6,0.2]
[1759075775887,40.75,204.61,204.6,0.2]
[1759075776093,40.08,204.63,204.6,0.2]
[1759075776474,40.71,204.64,204.6,0.2]
[1759075776982,40.06,204.66,204.61,7.43424296]
[1759075777182,40.06,204.66,204.62,6.71424296]
[1759075777690,40.71,204.66,204.62,6.71424296]
[1759075777888,40.71,204.66,204.61,6.71424296]
[1759075778194,40.71,204.66,204.6,14.2]
[1759075778195,0.65,204.7,204.64,6.71424296]
[1759075778377,7.36424296,204.73,204.67,6.71424296]
[1759075778685,0.65,204.72,204.67,6.71424296]
[1759075778893,0.65,204.71,204.67,6.71424296]
[1759075779383,0.65,204.7,204.66,14.0]
[1759075779687,0.65,204.69,204.64,20.71424296]
[1759075779893,7.36424296,204.69,204.64,14.0]
[1759075780190,7.36424296,204.69,204.66,14.0]
[1759075780362,6.71424296,204.67,204.64,14.0]
[1759075780569,6.71424296,204.65,204.61,14.0]
[1759075780780,6.71424296,204.64,204.61,14.0]
[1759075780991,7.36424296,204.63,204.6,0.2]
[1759075781282,6.71424296,204.61,204.6,0.2]
[1759075781682,26.0,204.62,204.6,0.2]
[1759075781984,6.71424296,204.61,204.6,0.2]
[1759075782188,13.59559401,204.66,204.6,0.2]
[1759075782366,26.0,204.62,204.6,0.2]
[1759075782990,26.0,204.63,204.6,0.2]
[1759075783380,0.65,204.62,204.6,0.2]
[1759075783692,6.71424296,204.62,204.6,0.2]
[1759075784070,26.0,204.63,204.6,0.2]
[1759075784269,6.71424296,204.62,204.6,0.2]
[1759075784478,33.36424296,204.63,204.6,0.2]
[1759075784670,26.0,204.63,204.6,0.2]
[1759075784980,33.36424296,204.63,204.6,0.2]
[1759075785384,73.32424296,204.63,204.6,0.2]
[1759075785587,73.30424296,204.63,204.6,0.2]
[1759075785784,6.71424296,204.61,204.6,0.2]
[1759075785991,39.94,204.62,204.6,0.2]
[1759075786179,39.94,204.64,204.6,0.2]
[1759075786487,39.94,204.64,204.62,14.0]
[1759075787181,0.65,204.69,204.64,14.0]
[1759075787384,3.96046893,204.75,204.64,14.0]
[1759075787385,0.65,204.71,204.65,7.43424296]
[1759075787570,32.71424296,204.7,204.64,20.71424296]
[1759075787992,32.71424296,204.7,204.64,14.0]
[1759075788301,6.71424296,204.7,204.64,20.71424296]
[1759075788607,26.0,204.68,204.64,20.71424296]
[1759075788771,26.0,204.68,204.64,14.0]
[1759075788976,26.65,204.68,204.64,14.0]
[1759075789287,26.0,204.7,204.66,14.0]
[1759075789489,26.0,204.7,204.66,20.71424296]
[1759075789702,46.63424296,204.71,204.66,14.0]
[1759075790001,6.71424296,204.68,204.66,14.0]
[1759075790175,0.65,204.7,204.66,14.0]
[1759075790496,6.71424296,204.7,204.66,14.0]
[1759075790674,47.29424296,204.7,204.66,14.0]
[1759075790874,7.39424296,204.7,204.66,14.0]
[1759075791293,6.71424296,204.7,204.66,14.0]
[1759075791495,32.71424296,204.71,204.66,14.0]
[1759075791679,7.39424296,204.7,204.66,14.0]
[1759075792295,7.39424296,204.69,204.66,14.0]
[1759075793080,6.71424296,204.69,204.66,14.0]
[1759075793395,66.56,204.71,204.66,14.0]
[1759075793599,72.55424296,204.71,204.67,0.71]
[1759075793780,72.55424296,204.71,204.66,14.71]
[1759075793979,73.23424296,204.71,204.66,14.71]
[1759075794176,73.21424296,204.71,204.66,14.71]
[1759075794378,6.71424296,204.7,204.66,14.0]
[1759075794600,7.39424296,204.7,204.66,14.0]
[1759075795102,6.71424296,204.7,204.66,14.0]
[1759075795288,7.39424296,204.69,204.66,14.0]
[1759075795481,65.82,204.71,204.62,0.71]
[1759075795482,6.71424296,204.67,204.64,14.0]
[1759075795682,6.71424296,204.65,204.6,14.2]
[1759075796002,6.71424296,204.63,204.6,14.2]
[1759075796797,7.39424296,204.63,204.6,14.2]
[1759075797083,6.71424296,204.61,204.6,0.2]
[1759075797282,0.68,204.62,204.6,0.2]
[1759075797617,6.71424296,204.63,204.61,14.0]
[1759075797901,39.82,204.64,204.61,14.0]
[1759075798778,6.71424296,204.65,204.61,14.0]
[1759075799383,6.71424296,204.65,204.61,14.71]
[1759075799602,6.71424296,204.65,204.61,14.0]
[1759075800210,6.71424296,204.65,204.61,14.71]
[1759075801510,6.71424296,204.65,204.61,14.0]
[1759075801688,6.71424296,204.64,204.61,14.0]
[1759075802085,6.71424296,204.62,204.6,0.2]
[1759075802405,46.98983697,204.61,204.6,0.2]
[1759075804410,86.76983697,204.61,204.6,0.2]
[1759075804580,86.74983697,204.61,204.6,0.2]
[1759075804784,80.03559401,204.61,204.6,0.2]
[1759075805003,40.27559401,204.61,204.6,0.2]
[1759075805202,86.74983697,204.61,204.6,0.2]
[1759075805610,46.98983697,204.61,204.6,0.2]
[1759075805806,86.74983697,204.61,204.6,0.2]
[1759075806005,46.45424296,204.62,204.6,0.2]
[1759075807010,6.71424296,204.61,204.6,0.2]
[1759075807788,40.4,204.61,204.6,0.2]
[1759075808006,47.11424296,204.61,204.6,0.2]
[1759075808705,60.70983697,204.61,204.6,0.2]
[1759075809285,64.00174272,204.61,204.6,0.2]
[1759075810514,63.98174272,204.61,204.6,0.2]
[1759075811391,66.5394066,204.61,204.6,0.2]
[1759075812197,66.5394066,204.61,204.53,14.0]
[1759075812198,39.59559401,204.57,204.53,14.0]
[1759075812404,13.59559401,204.55,204.53,14.0]
[1759075812625,4.23038823,204.56,204.54,0.68]
[1759075812805,43.99038823,204.55,204.53,14.0]
[1759075813124,4.23038823,204.54,204.53,14.0]
[1759075814191,39.76,204.55,204.53,14.68]
[1759075814389,43.99038823,204.55,204.53,14.0]
[1759075815200,26.0,204.56,204.54,0.68]
[1759075815527,39.72,204.56,204.55,0.68]
[1759075816017,65.72,204.58,204.55,14.68]
[1759075816193,65.72,204.58,204.56,0.68]
[1759075816389,137.03038823,204.6,204.57,0.68]
[1759075816594,39.72,204.59,204.57,14.68]
[1759075816899,39.72,204.6,204.57,14.68]
[1759075817299,26.0,204.6,204.58,0.68]
[1759075817812,39.7,204.61,204.58,0.68]
[1759075818007,26.0,204.6,204.58,0.68]
[1759075818315,26.0,204.6,204.59,0.68]
[1759075818615,4.95038823,204.64,204.59,14.0]
[1759075818811,26.0,204.62,204.59,14.68]
[1759075819393,65.68,204.62,204.59,14.0]
[1759075819593,26.0,204.62,204.59,14.0]
[1759075819824,65.68,204.62,204.59,14.0]
[1759075819999,26.0,204.62,204.59,14.0]
[1759075820202,65.68,204.62,204.59,14.0]
[1759075820420,65.66,204.62,204.59,14.0]
[1759075821114,65.64,204.62,204.59,14.0]
[1759075821323,40.36,204.61,204.56,14.0]